bitfinex-derivatives/quotes_BTCF0:USTF0_20230701
["timestamp","ask_amount","ask_price","bid_price","bid_amount"]
[1688234834499,0.79062371,30620.0,30619.0,0.65696393]
[1688234837200,0.0267195,30621.0,30619.0,0.90386393]
[1688234837393,0.0267195,30621.0,30620.0,0.52262912]
[1688234837593,0.00048989,30622.0,30620.0,0.29692412]
[1688234837794,0.00048989,30622.0,30621.0,0.6913]
[1688234837998,0.00048989,30622.0,30621.0,0.74082412]
[1688234838190,0.05460396,30622.0,30621.0,0.74082412]
[1688234839703,0.05460396,30622.0,30621.0,1.10162412]
[1688234841503,0.0810175,30622.0,30621.0,1.10162412]
[1688234842097,0.0810175,30622.0,30621.0,0.74082412]
[1688234842301,0.0810175,30622.0,30621.0,1.10162412]
[1688234843906,0.0810175,30622.0,30621.0,0.38002412]
[1688234844309,0.0810175,30622.0,30621.0,1.10162412]
[1688234852021,0.0810175,30622.0,30621.0,0.74082412]
[1688234857229,0.0810175,30622.0,30621.0,0.74062663]
[1688234857529,0.0810175,30622.0,30621.0,0.625695]
[1688234858132,0.09924719,30622.0,30621.0,0.625695]
[1688234858430,0.0810175,30622.0,30621.0,0.625695]
[1688234858630,0.0810175,30622.0,30621.0,0.64454445]
[1688234860520,0.0810175,30622.0,30621.0,0.65562412]
[1688234864526,0.0810175,30622.0,30621.0,0.29482412]
[1688234868130,0.05460396,30622.0,30621.0,0.29482412]
[1688234872123,0.37050396,30622.0,30621.0,0.29459225]
[1688234877035,0.37050396,30622.0,30621.0,0.65539225]
[1688234882141,0.37050396,30622.0,30621.0,0.29459225]
[1688234883730,0.37050396,30622.0,30621.0,0.28351258]
[1688234884134,0.37050396,30622.0,30621.0,0.29459225]
[1688234886235,0.37050396,30622.0,30621.0,0.26466313]
[1688234886532,0.37050396,30622.0,30621.0,0.29459225]
[1688234886949,0.37050396,30622.0,30621.0,0.29439514]
[1688234889933,0.37050396,30622.0,30621.0,0.26446602]
[1688234890133,0.61710396,30622.0,30621.0,0.2474]
[1688234890346,0.63669996,30622.0,30621.0,0.266997]
[1688234890646,0.65492965,30622.0,30621.0,0.266997]
[1688234890847,0.65492965,30622.0,30621.0,0.2474]
[1688234891957,0.65492965,30622.0,30621.0,0.266997]
[1688234894149,0.65492965,30622.0,30621.0,0.019597]
[1688234895640,1.01572965,30622.0,30621.0,0.019597]
[1688234896240,0.65492965,30622.0,30621.0,0.019597]
[1688234896551,1.01572965,30622.0,30621.0,0.019597]
[1688234896849,0.99749996,30622.0,30621.0,0.03844645]
[1688234897550,0.99613365,30622.0,30621.0,0.03844645]
[1688234897846,1.01572865,30622.0,30620.0,0.2474]
[1688234898041,0.2461,30621.0,30620.0,0.266997]
[1688234898242,0.26432969,30621.0,30620.0,0.266997]
[1688234898442,0.75371917,30621.0,30620.0,0.266997]
[1688234898849,0.77331517,30621.0,30620.0,0.266997]
[1688234899652,0.75371917,30621.0,30620.0,0.266997]
[1688234901957,0.75371917,30621.0,30620.0,0.26686443]
[1688234904250,0.50761917,30621.0,30620.0,0.266397]
[1688234905751,0.52721517,30621.0,30620.0,0.266397]
[1688234906753,0.50761917,30621.0,30620.0,0.266397]
[1688234907844,0.52721517,30621.0,30620.0,0.266397]
[1688234908756,0.50761917,30621.0,30620.0,0.266397]
[1688234909759,0.52721517,30621.0,30620.0,0.266397]
[1688234910268,0.52721517,30621.0,30620.0,0.2663304]
[1688234910559,0.52721417,30621.0,30620.0,0.2663304]
[1688234910761,0.50898448,30621.0,30620.0,0.2663304]
[1688234911253,0.50761917,30621.0,30620.0,0.2663304]
[1688234911962,0.48938948,30621.0,30620.0,0.2663304]
[1688234912259,0.50761917,30621.0,30620.0,0.2663304]
[1688234912859,0.52721417,30621.0,30620.0,0.2663304]
[1688234913761,0.50761917,30621.0,30620.0,0.2663304]
[1688234915157,0.52721417,30621.0,30620.0,0.2663304]
[1688234915659,0.48938948,30621.0,30620.0,0.2663304]
[1688234916364,0.50761917,30621.0,30620.0,0.2663304]
[1688234918651,0.48938948,30621.0,30620.0,0.2663304]
[1688234918857,0.50898548,30621.0,30620.0,0.2663304]
[1688234919054,0.48938948,30621.0,30620.0,0.2663304]
[1688234919564,0.50761917,30621.0,30620.0,0.2663304]
[1688234921670,0.48938948,30621.0,30620.0,0.2663304]
[1688234923757,0.48938948,30621.0,30620.0,0.2661679]
[1688234925068,0.48938948,30621.0,30620.0,0.28501735]
[1688234925871,0.48938948,30621.0,30620.0,0.2661679]
[1688234926060,0.50761917,30621.0,30620.0,0.2661679]
[1688234926673,0.48938948,30621.0,30620.0,0.2661679]
[1688234927760,0.50761917,30621.0,30620.0,0.2661679]
[1688234929365,0.488189,30621.0,30620.0,0.28501735]
[1688234931070,0.50641869,30621.0,30620.0,0.2661679]
[1688234931374,0.488189,30621.0,30620.0,0.2661679]
[1688234931571,0.50641869,30621.0,30620.0,0.2661679]
[1688234932769,0.488189,30621.0,30620.0,0.28501735]
[1688234934075,0.488189,30621.0,30620.0,0.2661679]
[1688234935670,0.488189,30621.0,30620.0,0.28501735]
[1688234937078,0.488189,30621.0,30620.0,0.2661679]
[1688234937775,0.50641869,30621.0,30620.0,0.2661679]
[1688234938377,0.488189,30621.0,30620.0,0.2661679]
[1688234938562,0.50641869,30621.0,30620.0,0.2661679]
[1688234938767,0.48805717,30621.0,30620.0,0.28501735]
[1688234943785,0.48805717,30621.0,30620.0,0.2661679]
[1688234945405,0.48805717,30621.0,30620.0,0.28501735]
[1688234946602,0.50628686,30621.0,30620.0,0.28501735]
[1688234946901,0.48805717,30621.0,30620.0,0.2661679]
[1688234948506,0.50628686,30621.0,30620.0,0.2661679]
[1688234948803,0.48805717,30621.0,30620.0,0.2661679]
[1688234949698,0.48805717,30621.0,30620.0,0.27724757]
[1688234949899,0.48805717,30621.0,30620.0,0.29609702]
[1688234950098,0.48805717,30621.0,30620.0,0.28501735]
[1688234950606,0.48805717,30621.0,30620.0,0.29609702]
[1688234950806,0.48805717,30621.0,30620.0,0.28501735]
[1688234951003,0.48805717,30621.0,30620.0,0.284787]
[1688234952909,0.48805717,30621.0,30620.0,0.29586667]
[1688234953298,0.48805717,30621.0,30620.0,0.284787]
[1688234953506,0.48805717,30621.0,30620.0,0.29586667]
[1688234954308,0.48805717,30621.0,30620.0,0.65666667]
[1688234955994,0.48805717,30621.0,30620.0,0.645587]
[1688234956807,0.48805717,30621.0,30620.0,0.284787]
[1688234956997,0.48805717,30621.0,30620.0,0.29586667]
[1688234957396,0.48805717,30621.0,30620.0,0.284787]
[1688234958404,0.48805717,30621.0,30620.0,0.29586667]
[1688234958807,0.50628686,30621.0,30620.0,0.26593755]
[1688234959409,0.48805717,30621.0,30620.0,0.26593755]
[1688234961914,0.48805717,30621.0,30620.0,0.27701722]
[1688234962107,0.48805717,30621.0,30620.0,0.26593755]
[1688234963228,0.48805717,30621.0,30620.0,0.26578316]
[1688234963518,0.50628686,30621.0,30620.0,0.26578316]
[1688234963814,0.48805717,30621.0,30620.0,0.27686283]
[1688234964015,0.48805717,30621.0,30620.0,0.26578316]
[1688234964318,0.50628686,30621.0,30620.0,0.26578316]
[1688234964508,0.48805717,30621.0,30620.0,0.26578316]
[1688234965407,0.50628686,30621.0,30620.0,0.26578316]
[1688234966706,0.48805717,30621.0,30620.0,0.26578316]
[1688234968117,0.50628686,30621.0,30620.0,0.26578316]
[1688234968411,0.48805717,30621.0,30620.0,0.26578316]
[1688234968614,0.48805717,30621.0,30620.0,0.29571228]
[1688234969316,0.48795379,30621.0,30620.0,0.29571228]
[1688234970116,0.48795379,30621.0,30620.0,0.28463261]
[1688234970316,0.48795379,30621.0,30620.0,0.29571228]
[1688234971309,0.48795379,30621.0,30620.0,0.65651228]
[1688234971721,0.48795379,30621.0,30620.0,0.29571228]
[1688234972018,0.48795379,30621.0,30620.0,0.65651228]
[1688234972513,0.48795379,30621.0,30620.0,0.64543261]
[1688234972716,0.48795379,30621.0,30620.0,0.65651228]
[1688234974008,0.48795379,30621.0,30620.0,0.29571228]
[1688234974209,0.48795379,30621.0,30620.0,0.65651228]
[1688234978826,0.48795379,30621.0,30620.0,0.29571228]
[1688234979127,0.48795379,30621.0,30620.0,0.65651228]
[1688234980224,0.48795379,30621.0,30620.0,0.29571228]
[1688234980421,0.48795379,30621.0,30620.0,0.65651228]
[1688234980722,0.48795379,30621.0,30620.0,0.29571228]
[1688234980928,0.48795379,30621.0,30620.0,0.65651228]
[1688234983530,0.48795379,30621.0,30620.0,0.65630475]
[1688234986736,0.48795379,30621.0,30620.0,0.29550475]
[1688234987029,0.48795379,30621.0,30620.0,0.65630475]
[1688234991635,0.48795379,30621.0,30620.0,0.29550475]
[1688234991828,0.48795379,30621.0,30620.0,0.65630475]
[1688234992021,0.48795379,30621.0,30620.0,0.29550475]
[1688234992226,0.48795379,30621.0,30620.0,0.65630475]
[1688234992627,0.48795379,30621.0,30620.0,0.29550475]
[1688234992835,0.48795379,30621.0,30620.0,0.65630475]
[1688234993631,0.48795379,30621.0,30620.0,0.6374553]
[1688234994736,0.48795379,30621.0,30620.0,0.2766553]
[1688234996634,0.48795379,30621.0,30620.0,0.2765845]
[1688235000144,0.48795379,30621.0,30620.0,0.29543395]
[1688235001543,0.48795379,30621.0,30620.0,0.26550483]
[1688235001950,0.48795379,30621.0,30620.0,0.28435428]
[1688235002246,0.48795379,30621.0,30620.0,0.29543395]
[1688235003248,0.48795379,30621.0,30620.0,0.65623395]
[1688235005952,0.51255361,30621.0,30620.0,0.65623395]
[1688235006549,0.51255361,30621.0,30620.0,0.29543395]
[1688235006740,0.51255361,30621.0,30620.0,0.65623395]
[1688235009550,0.51255361,30621.0,30620.0,0.63725532]
[1688235013051,0.51255361,30621.0,30620.0,0.65610477]
[1688235021654,0.51255361,30621.0,30620.0,0.65587056]
[1688235022672,0.51255361,30621.0,30620.0,0.29507056]
[1688235022855,0.51255361,30621.0,30620.0,0.65587056]
[1688235034373,0.51255361,30621.0,30620.0,0.65565599]
[1688235035663,0.51255361,30621.0,30620.0,0.29485599]
[1688235035967,0.51255361,30621.0,30620.0,0.65565599]
[1688235039876,0.51255361,30621.0,30620.0,0.29485599]
[1688235040173,0.51255361,30621.0,30620.0,0.65565599]
[1688235041377,0.49904645,30621.0,30620.0,0.65565599]
[1688235042676,0.49904645,30621.0,30620.0,0.29485599]
[1688235042864,0.49904645,30621.0,30620.0,0.65565599]
[1688235046782,0.49904645,30621.0,30620.0,0.65557659]
[1688235057788,0.49794064,30621.0,30620.0,0.65557659]
[1688235066184,0.49794064,30621.0,30620.0,0.29477659]
[1688235066387,0.49794064,30621.0,30620.0,0.65557659]
[1688235070499,0.49794064,30621.0,30620.0,0.65550248]
[1688235070985,0.49794064,30621.0,30620.0,0.29470248]
[1688235071186,0.49794064,30621.0,30620.0,0.65550248]
[1688235081295,0.49794064,30621.0,30620.0,0.62557336]
[1688235082102,0.49794064,30621.0,30620.0,0.64442281]
[1688235082307,0.49794064,30621.0,30620.0,0.65550248]
[1688235082500,0.49794064,30621.0,30620.0,0.64442281]
[1688235082903,0.49794064,30621.0,30620.0,0.65550248]
[1688235083409,0.49794064,30621.0,30620.0,0.64436238]
[1688235083600,0.49794064,30621.0,30620.0,0.65544205]
[1688235083801,0.49794064,30621.0,30620.0,0.64436238]
[1688235084005,0.49794064,30621.0,30620.0,0.65544205]
[1688235085001,0.49794064,30621.0,30620.0,0.29464205]
[1688235086005,0.49794064,30621.0,30620.0,0.28356238]
[1688235086712,0.49794064,30621.0,30620.0,0.29464205]
[1688235087901,0.49794064,30621.0,30620.0,0.28356238]
[1688235091011,0.49794064,30621.0,30620.0,0.29464205]
[1688235097322,0.49794064,30621.0,30620.0,0.28356238]
[1688235097821,0.49794064,30621.0,30620.0,0.29464205]
[1688235098016,0.49794064,30621.0,30620.0,0.28356238]
[1688235098325,0.49794064,30621.0,30620.0,0.29464205]
[1688235099715,0.49794064,30621.0,30620.0,0.28356238]
[1688235100411,0.49794064,30621.0,30620.0,0.29464205]
[1688235100827,0.49794064,30621.0,30620.0,0.28356238]
[1688235101116,0.49794064,30621.0,30620.0,0.29464205]
[1688235105832,0.49770766,30621.0,30620.0,0.29464205]
[1688235106122,0.49770766,30621.0,30620.0,0.65544205]
[1688235108119,0.49770766,30621.0,30620.0,0.29464205]
[1688235108320,0.49770766,30621.0,30620.0,0.65544205]
[1688235108520,0.49770766,30621.0,30620.0,0.29464205]
[1688235108917,0.49770766,30621.0,30620.0,0.65544205]
[1688235113334,0.49770766,30621.0,30620.0,0.29464205]
[1688235113528,0.49770766,30621.0,30620.0,0.65544205]
[1688235114624,0.49770766,30621.0,30620.0,0.29464205]
[1688235115023,0.49770766,30621.0,30620.0,0.65544205]
[1688235119321,0.49770766,30621.0,30620.0,0.29464205]
[1688235119621,0.49770766,30621.0,30620.0,0.65544205]
[1688235120132,0.49770766,30621.0,30620.0,0.65530171]
[1688235126127,0.49770766,30621.0,30620.0,0.29450171]
[1688235126321,0.49770766,30621.0,30620.0,0.65530171]
[1688235128132,0.49770766,30621.0,30620.0,0.29450171]
[1688235128346,0.49770766,30621.0,30620.0,0.65530171]
[1688235129631,0.49770766,30621.0,30620.0,0.29450171]
[1688235129837,0.49770766,30621.0,30620.0,0.65530171]
[1688235132533,0.49770766,30621.0,30620.0,0.29450171]
[1688235132738,0.49770766,30621.0,30620.0,0.65530171]
[1688235139944,0.49770766,30621.0,30620.0,0.29450171]
[1688235140138,0.49770766,30621.0,30620.0,0.65530171]
[1688235146038,0.49770766,30621.0,30620.0,0.29450171]
[1688235146238,0.49770766,30621.0,30620.0,0.65530171]
[1688235158353,0.49770766,30621.0,30620.0,0.64422204]
[1688235159557,0.49770766,30621.0,30620.0,0.65530171]
[1688235159750,0.49770766,30621.0,30620.0,0.29450171]
[1688235159949,0.49770766,30621.0,30620.0,0.65530171]
[1688235161954,0.49770766,30621.0,30620.0,0.29450171]
[1688235162254,0.49770766,30621.0,30620.0,0.65530171]
[1688235164661,0.49770766,30621.0,30620.0,0.29450171]
[1688235164859,0.49770766,30621.0,30620.0,0.65530171]
[1688235165062,0.49770766,30621.0,30620.0,0.29450171]
[1688235165265,0.49770766,30621.0,30620.0,0.65530171]
[1688235165762,0.49770766,30621.0,30620.0,0.29450171]
[1688235165975,0.49770766,30621.0,30620.0,0.65530171]
[1688235177078,0.49770766,30621.0,30620.0,0.29450171]
[1688235177386,0.49770766,30621.0,30620.0,0.65530171]
[1688235180986,0.49770766,30621.0,30620.0,0.29450171]
[1688235181189,0.49770766,30621.0,30620.0,0.65530171]
[1688235184974,0.49301032,30621.0,30620.0,0.65530171]
[1688235206595,0.49301032,30621.0,30620.0,0.29450171]
[1688235207097,0.49301032,30621.0,30620.0,0.65530171]
[1688235209995,0.49301032,30621.0,30620.0,0.29450171]
[1688235210196,0.49301032,30621.0,30620.0,0.65530171]
[1688235215805,0.49301032,30621.0,30620.0,0.29450171]
[1688235216006,0.49301032,30621.0,30620.0,0.65530171]
[1688235218908,0.49301032,30621.0,30620.0,0.29450171]
[1688235219105,0.49301032,30621.0,30620.0,0.64422204]
[1688235219304,0.49301032,30621.0,30620.0,0.65530171]
[1688235235925,0.49301032,30621.0,30620.0,0.29450171]
[1688235236123,0.49301032,30621.0,30620.0,0.65530171]
[1688235242423,0.49301032,30621.0,30620.0,0.29450171]
[1688235242623,0.49301032,30621.0,30620.0,0.65530171]
[1688235251732,0.4602277,30621.0,30620.0,0.65530171]
[1688235254637,0.4602277,30621.0,30620.0,0.64422204]
[1688235255041,0.4602277,30621.0,30620.0,0.65530171]
[1688235258537,0.4602277,30621.0,30620.0,0.29450171]
[1688235258738,0.4602277,30621.0,30620.0,0.65530171]
[1688235259443,0.4602277,30621.0,30620.0,0.29450171]
[1688235259663,0.4602277,30621.0,30620.0,0.64422204]
[1688235259856,0.4602277,30621.0,30620.0,0.65530171]
[1688235270965,0.4602277,30621.0,30620.0,0.29450171]
[1688235271167,0.4602277,30621.0,30620.0,0.65530171]
[1688235283979,0.4602277,30621.0,30620.0,0.29450171]
[1688235284181,0.4602277,30621.0,30620.0,0.65530171]
[1688235286083,0.4602277,30621.0,30620.0,0.29450171]
[1688235286285,0.4602277,30621.0,30620.0,0.65530171]
[1688235288283,0.4602277,30621.0,30620.0,0.64422204]
[1688235288478,0.4602277,30621.0,30620.0,0.65530171]
[1688235294781,0.4602277,30621.0,30620.0,0.64422204]
[1688235294981,0.4602277,30621.0,30620.0,0.65530171]
[1688235295179,0.4602277,30621.0,30620.0,0.64422204]
[1688235295582,0.4602277,30621.0,30620.0,0.65530171]
[1688235295888,0.4602277,30621.0,30620.0,0.64422204]
[1688235297184,0.4602277,30621.0,30620.0,0.65530171]
[1688235297383,0.4602277,30621.0,30620.0,0.64422204]
[1688235297792,0.4602277,30621.0,30620.0,0.65530171]
[1688235299392,0.4602277,30621.0,30620.0,0.64422204]
[1688235299893,0.4602277,30621.0,30620.0,0.28342204]
[1688235300091,0.4602277,30621.0,30620.0,0.64422204]
[1688235301495,0.46278352,30621.0,30620.0,0.65530171]
[1688235304491,0.46278352,30621.0,30620.0,0.90260171]
[1688235304791,0.00048989,30622.0,30620.0,0.90260171]
[1688235304999,0.00048989,30622.0,30621.0,0.29692412]
[1688235305197,0.3274,30627.0,30621.0,0.29692412]
[1688235305198,0.3274,30627.0,30626.0,0.05]
[1688235305397,0.43887344,30631.0,30626.0,1.31432112]
[1688235305592,0.32124628,30631.0,30630.0,0.6082]
[1688235305798,0.64864628,30631.0,30630.0,0.627789]
[1688235306106,0.82522451,30631.0,30630.0,0.65771812]
[1688235306399,0.00868157,30631.0,30630.0,0.70771812]
[1688235306699,0.0001763,30632.0,30630.0,0.70771812]
[1688235306904,0.0001763,30632.0,30631.0,0.90461812]
[1688235307096,0.0004897,30634.0,30631.0,0.873589]
[1688235307292,0.0004897,30634.0,30633.0,0.6082]
[1688235307494,0.2478897,30634.0,30633.0,0.6082]
[1688235307803,0.2478897,30634.0,30633.0,0.627788]
[1688235308206,0.30228521,30634.0,30633.0,0.627788]
[1688235308596,0.2478897,30634.0,30633.0,0.627788]
[1688235308899,0.2478897,30634.0,30633.0,0.6082]
[1688235309404,0.2478897,30634.0,30633.0,0.2474]
[1688235309994,0.2478897,30634.0,30633.0,0.25847967]
[1688235310398,0.2478897,30634.0,30633.0,0.27732912]
[1688235311507,0.27612327,30634.0,30633.0,0.27732912]
[1688235312896,0.27612327,30634.0,30633.0,0.2474]
[1688235313100,0.29435296,30634.0,30633.0,0.2474]
[1688235313309,0.31393996,30634.0,30633.0,0.2474]
[1688235314813,0.31393996,30634.0,30628.0,0.419572]
[1688235314814,0.42733996,30634.0,30627.0,0.0200797]
[1688235315117,0.40911027,30634.0,30631.0,0.2453]
[1688235315306,0.40911027,30634.0,30627.0,0.2478897]
[1688235315307,0.019589,30631.0,30627.0,0.2478897]
[1688235315506,0.266991,30628.0,30627.0,0.2478897]
[1688235315813,0.28522069,30628.0,30627.0,0.2478897]
[1688235317304,0.28522069,30628.0,30624.0,0.2474]
[1688235317506,0.2474,30625.0,30624.0,0.2474]
[1688235317705,0.266993,30625.0,30624.0,0.2474]
[1688235317996,0.28522269,30625.0,30624.0,0.2474]
[1688235318408,0.64602269,30625.0,30621.0,0.0004898]
[1688235318603,0.2456,30622.0,30621.0,0.0004898]
[1688235318799,0.265195,30622.0,30621.0,0.0004898]
[1688235319103,0.28342469,30622.0,30621.0,0.0004898]
[1688235319305,0.64422469,30622.0,30621.0,0.0004898]
[1688235319609,1.13386601,30622.0,30621.0,0.0004898]
[1688235320106,0.77306601,30622.0,30621.0,0.0004898]
[1688235320804,0.77306601,30622.0,30621.0,0.0200848]
[1688235322713,0.79920455,30622.0,30621.0,0.0200848]
[1688235323914,0.79920455,30622.0,30621.0,0.0004898]
[1688235326516,0.80791122,30622.0,30621.0,0.0004898]
[1688235328716,0.56231122,30622.0,30621.0,0.2457898]
[1688235332011,0.56231122,30622.0,30621.0,0.24562367]
[1688235335422,0.80971122,30622.0,30621.0,0.00032367]
[1688235336114,0.80959145,30622.0,30621.0,0.00032367]
[1688235336417,1.13779145,30622.0,30621.0,0.00032367]
[1688235341116,1.49859145,30622.0,30621.0,0.00032367]
[1688235341624,1.13779145,30622.0,30621.0,0.00032367]
[1688235341820,1.49859145,30622.0,30621.0,0.00032367]
[1688235344832,1.13779145,30622.0,30621.0,0.00032367]
[1688235345132,1.49859145,30622.0,30621.0,0.00032367]
[1688235346819,1.13779145,30622.0,30621.0,0.00032367]
[1688235347018,1.49859145,30622.0,30621.0,0.00032367]
[1688235347534,1.13779145,30622.0,30621.0,0.00032367]
[1688235347734,1.49859145,30622.0,30621.0,0.00032367]
[1688235348422,1.49859145,30622.0,30621.0,0.00021851]
[1688235348837,1.61621861,30622.0,30621.0,0.00021851]
[1688235350029,1.49859145,30622.0,30621.0,0.00021851]
[1688235350227,0.01822969,30621.0,30618.0,0.2474]
[1688235350542,0.265696,30619.0,30618.0,0.2474]
[1688235350731,0.274423,30619.0,30618.0,0.2474]
[1688235350922,0.29265269,30619.0,30618.0,0.2474]
[1688235357929,0.29020294,30619.0,30617.0,0.3321]
[1688235358128,0.26432969,30618.0,30615.0,0.5544899]
[1688235358333,0.2474,30616.0,30615.0,0.5544899]
[1688235358530,0.28522769,30616.0,30615.0,0.5544899]
[1688235358734,0.77681071,30616.0,30615.0,0.5544899]
[1688235358932,0.77681071,30616.0,30615.0,0.8795899]
[1688235360034,0.76681071,30616.0,30615.0,0.8795899]
[1688235361034,0.76681071,30616.0,30615.0,0.8991889]
[1688235364134,0.52941071,30616.0,30615.0,0.8985889]
[1688235371147,0.55503,30616.0,30615.0,0.8985889]
[1688235371653,0.52333057,30616.0,30615.0,0.8985889]
[1688235372239,0.52333057,30616.0,30615.0,0.90966857]
[1688235372648,0.56115826,30616.0,30615.0,0.89850737]
[1688235373249,0.54292857,30616.0,30615.0,0.89850737]
[1688235373446,0.56115826,30616.0,30615.0,0.89850737]
[1688235374246,0.54292857,30616.0,30615.0,0.89850737]
[1688235378047,0.56115826,30616.0,30615.0,0.89850737]
[1688235378643,0.54292857,30616.0,30615.0,0.89850737]
[1688235378847,0.56115826,30616.0,30615.0,0.89850737]
[1688235379044,0.54292857,30616.0,30615.0,0.89850737]
[1688235379548,0.56115826,30616.0,30615.0,0.89850737]
[1688235381053,0.54292857,30616.0,30615.0,0.89850737]
[1688235381655,0.56115826,30616.0,30615.0,0.89850737]
[1688235382855,0.54292857,30616.0,30615.0,0.89850737]
[1688235383845,0.54292857,30616.0,30615.0,0.90958704]
[1688235384243,0.54292857,30616.0,30615.0,0.89850737]
[1688235386750,0.56115826,30616.0,30615.0,0.89850737]
[1688235387251,0.54292857,30616.0,30615.0,0.89850737]
[1688235388056,0.52333057,30616.0,30615.0,0.89850737]
[1688235388444,0.52333057,30616.0,30615.0,0.92843649]
[1688235388644,0.25111205,30616.0,30615.0,1.28923649]
[1688235388848,0.17641041,30616.0,30615.0,1.28923649]
[1688235389350,0.17221041,30616.0,30615.0,1.28923649]
[1688235390047,0.16418379,30616.0,30615.0,1.28923649]
[1688235402974,0.16418379,30616.0,30615.0,1.65003649]
[1688235412084,0.17302262,30616.0,30615.0,1.65003649]
[1688235416795,0.17302262,30616.0,30615.0,0.92843649]
[1688235416994,0.17302262,30616.0,30615.0,1.28923649]
[1688235419191,0.17302262,30616.0,30615.0,0.92843649]
[1688235419397,0.17302262,30616.0,30615.0,1.28923649]
[1688235425699,0.19955926,30616.0,30615.0,1.28923649]
[1688235428703,0.19955926,30616.0,30615.0,1.27815682]
[1688235428890,0.19955926,30616.0,30615.0,1.28923649]
[1688235432597,0.19955926,30616.0,30615.0,0.92843649]
[1688235432791,0.19955926,30616.0,30615.0,1.28923649]
[1688235434605,0.19955926,30616.0,30615.0,1.27815682]
[1688235434996,0.19955926,30616.0,30615.0,1.28923649]
[1688235439894,0.19955926,30616.0,30615.0,1.27815682]
[1688235440093,0.19955926,30616.0,30615.0,1.28923649]
[1688235443392,0.19955926,30616.0,30615.0,0.92843649]
[1688235443598,0.19955926,30616.0,30615.0,1.28923649]
[1688235451409,0.19955926,30616.0,30615.0,0.92843649]
[1688235451614,0.19955926,30616.0,30615.0,1.28923649]
[1688235453011,0.19955926,30616.0,30615.0,1.27815682]
[1688235453602,0.19955926,30616.0,30615.0,0.91735682]
[1688235453904,0.19955926,30616.0,30615.0,1.27815682]
[1688235454811,0.19955926,30616.0,30615.0,0.91735682]
[1688235455214,0.19955926,30616.0,30615.0,1.27815682]
[1688235455918,0.19955926,30616.0,30615.0,1.28923649]
[1688235457721,0.19955926,30616.0,30615.0,1.27815682]
[1688235458110,0.19955926,30616.0,30615.0,0.91735682]
[1688235458316,0.19955926,30616.0,30615.0,1.27815682]
[1688235463219,0.19955926,30616.0,30615.0,1.28923649]
[1688235463827,0.17302262,30616.0,30615.0,1.28923649]
[1688235466928,0.17302262,30616.0,30615.0,1.27815682]
[1688235467428,0.17302262,30616.0,30615.0,1.28923649]
[1688235470227,0.17302262,30616.0,30615.0,1.27815682]
[1688235470426,0.17302262,30616.0,30615.0,1.28923649]
[1688235476626,0.17302262,30616.0,30615.0,1.27815682]
[1688235478432,0.17302262,30616.0,30615.0,1.28923649]
[1688235478627,0.17302262,30616.0,30615.0,1.27815682]
[1688235479325,0.17302262,30616.0,30615.0,1.28923649]
[1688235482033,0.17302262,30616.0,30615.0,1.27815682]
[1688235482927,0.17302262,30616.0,30615.0,1.28923649]
[1688235483332,0.17302262,30616.0,30615.0,0.9527889]
[1688235483737,0.17302262,30616.0,30615.0,0.6080899]
[1688235483939,0.21085031,30616.0,30615.0,0.6080899]
[1688235486738,0.21085031,30616.0,30615.0,0.2472899]
[1688235487133,0.21085031,30616.0,30615.0,0.2668879]
[1688235489932,0.21085031,30616.0,30615.0,0.24709255]
[1688235490130,0.45825031,30616.0,30615.0,0.24769255]
[1688235494045,0.45738763,30616.0,30615.0,0.24769255]
[1688235494236,0.45538763,30616.0,30615.0,0.24559255]
[1688235503953,0.45738763,30616.0,30615.0,0.24769255]
[1688235507458,0.45738763,30616.0,30615.0,0.24748751]
[1688235521664,0.45738763,30616.0,30615.0,0.24735003]
[1688235531477,0.45738763,30616.0,30615.0,0.55595003]
[1688235534076,0.45738763,30616.0,30615.0,0.556]
[1688235536473,0.45738763,30616.0,30615.0,0.55577171]
[1688235544179,0.45738763,30616.0,30615.0,0.57416971]
[1688235544383,0.4485488,30616.0,30615.0,0.57416971]
[1688235550785,0.4485488,30616.0,30615.0,0.57401428]
[1688235554186,0.4485488,30616.0,30615.0,0.55501628]
[1688235557188,0.4485488,30616.0,30615.0,0.57461428]
[1688235557482,0.43031911,30616.0,30615.0,0.57461428]
[1688235557680,0.43025342,30616.0,30615.0,0.57461428]
[1688235557880,0.44848311,30616.0,30615.0,0.57461428]
[1688235558587,0.44848311,30616.0,30615.0,0.55501628]
[1688235566785,0.44848311,30616.0,30615.0,0.44622526]
[1688235568087,0.75228311,30616.0,30615.0,0.44622526]
[1688235568698,0.75228311,30616.0,30615.0,0.2468]
[1688235569094,0.75228311,30616.0,30612.0,0.5596]
[1688235569296,0.2467,30613.0,30612.0,0.5596]
[1688235569492,0.2663,30613.0,30612.0,0.5596]
[1688235569693,0.28452969,30613.0,30612.0,0.5596]
[1688235569895,0.59762969,30613.0,30612.0,0.2474]
[1688235571497,0.59632969,30613.0,30611.0,0.3252]
[1688235571697,0.26492969,30612.0,30611.0,0.3252]
[1688235571898,0.28452969,30612.0,30611.0,0.3252]
[1688235579509,0.28452969,30612.0,30611.0,0.32501296]
[1688235581006,0.28452969,30612.0,30611.0,0.34461396]
[1688235581911,0.0196,30612.0,30611.0,0.59201396]
[1688235582111,0.0196,30612.0,30611.0,0.95281396]
[1688235582319,0.27346698,30613.0,30611.0,0.96389363]
[1688235582520,0.29306698,30613.0,30612.0,0.2462]
[1688235582702,0.29306698,30613.0,30612.0,0.2658]
[1688235582904,0.78019189,30613.0,30612.0,0.2658]
[1688235583608,0.79842158,30613.0,30612.0,0.2658]
[1688235585702,0.78019189,30613.0,30612.0,0.2658]
[1688235585909,0.76059189,30613.0,30612.0,0.2658]
[1688235586399,0.76059189,30613.0,30612.0,0.27687967]
[1688235586808,0.76059189,30613.0,30612.0,0.2658]
[1688235587315,0.78019189,30613.0,30612.0,0.2658]
[1688235587613,0.79842158,30613.0,30612.0,0.2658]
[1688235589521,0.78019189,30613.0,30612.0,0.2658]
[1688235590522,0.79842158,30613.0,30612.0,0.2658]
[1688235591913,0.78019189,30613.0,30612.0,0.2658]
[1688235592216,0.51389189,30613.0,30612.0,0.2658]
[1688235592413,0.51389189,30613.0,30612.0,0.27687967]
[1688235592625,0.51389189,30613.0,30612.0,0.29572912]
[1688235593617,0.51389189,30613.0,30612.0,0.28464945]
[1688235594023,0.51389189,30613.0,30612.0,0.6266]
[1688235594519,0.77909189,30613.0,30612.0,0.3804]
[1688235594727,0.77909189,30613.0,30612.0,0.3608]
[1688235594914,1.10259189,30613.0,30612.0,0.3608]
[1688235595323,1.12082158,30613.0,30612.0,0.3608]
[1688235596116,7.834e-05,30612.0,30611.0,0.2474]
[1688235596317,0.019601,30611.0,30609.0,0.700802]
[1688235596517,0.019601,30611.0,30610.0,0.28585045]
[1688235596923,0.019601,30611.0,30610.0,0.267001]
[1688235598228,0.019601,30611.0,30610.0,0.28585045]
[1688235598520,0.39649509,30613.0,30610.0,0.267001]
[1688235598719,0.295703,30612.0,30611.0,0.29693012]
[1688235598922,0.295703,30612.0,30611.0,0.267001]
[1688235599424,0.2663,30612.0,30611.0,0.267001]